lending/lending_fUSD_20250224
["ID","MTS","AMOUNT","RATE_DAILY","PERIOD"]
[354284908,1740393090830,-817.86,0.00017095,2]
[354284909,1740393090840,-500.0,0.00017095,2]
[354284910,1740393090851,-500.0,0.00017095,2]
[354284911,1740393090862,-554.61,0.00017095,2]
[354284912,1740393090871,-607.13,0.00017095,2]
[354284913,1740393090881,-500.0,0.00017095,2]
[354284914,1740393090891,-299.279106,0.00017095,2]
[354284915,1740393090901,-587.42,0.00017095,2]
[354284916,1740393090910,-500.0,0.00017095,2]
[354284917,1740393090919,-500.0,0.00017095,2]
[354284918,1740393090930,-500.0,0.00017095,2]
[354284919,1740393090939,-976.63,0.00017095,2]
[354284920,1740393090948,-758.07,0.00017095,2]
[354284921,1740393090957,-327.093108,0.00017095,2]
[354284922,1740393090966,-912.3,0.00017095,2]
[354284923,1740393090975,-966.44,0.00017095,2]
[354284924,1740393090984,-571.99,0.00017095,2]
[354284925,1740393090993,-583.89,0.00017095,2]
[354284926,1740393091002,-508.91,0.00017095,2]
[354284927,1740393091012,-500.0,0.00017095,2]
[354284928,1740393091021,-500.0,0.00017095,2]
[354284929,1740393091031,-500.0,0.00017095,2]
[354284930,1740393091040,-500.0,0.00017095,2]
[354284931,1740393091049,-825.69,0.00017095,2]
[354284932,1740393091058,-500.0,0.00017095,2]
[354284933,1740393091067,-793.11,0.00017095,2]
[354284934,1740393091078,-568.54,0.00017095,2]
[354284935,1740393091087,-522.94481752,0.00017095,2]
[354284936,1740393091095,-688.09,0.00017095,2]
[354284937,1740393091104,-500.0,0.00017095,2]
[354284938,1740393091114,-827.28,0.00017095,2]
[354284939,1740393091122,-260.68624356,0.00017095,2]
[354284940,1740393091131,-500.0,0.00017095,2]
[354284941,1740393091140,-500.0,0.00017095,2]
[354284942,1740393091149,-500.0,0.00017095,2]
[354284943,1740393091159,-500.0,0.00017095,2]
[354284944,1740393091168,-501.11,0.00017095,2]
[354284945,1740393091178,-571.55,0.00017095,2]
[354284946,1740393091187,-500.0,0.00017095,2]
[354284947,1740393091196,-590.2,0.00017095,2]
[354284948,1740393091206,-500.0,0.00017095,2]
[354284949,1740393091215,-500.0,0.00017095,2]
[354284950,1740393091366,-500.0,0.00017095,2]
[354284951,1740393091376,-500.0,0.00017095,2]
[354284952,1740393091387,-500.0,0.00017095,2]
[354284953,1740393091396,-500.0,0.00017095,2]
[354284954,1740393091405,-500.0,0.00017095,2]
[354284955,1740393091414,-500.0,0.00017095,2]
[354284956,1740393091424,-500.0,0.00017095,2]
[354284957,1740393091433,-865.78,0.00017095,2]
[354284958,1740393091442,-792.11,0.00017095,2]
[354284959,1740393091451,-502.07,0.00017095,2]
[354284960,1740393091461,-500.0,0.00017095,2]
[354284961,1740393091470,-732.07,0.00017095,2]
[354284962,1740393091480,-536.67,0.00017095,2]
[354284963,1740393091489,-772.46,0.00017095,2]
[354284964,1740393091498,-500.0,0.00017095,2]
[354284965,1740393091507,-994.92,0.00017095,2]
[354284966,1740393091516,-719.27,0.00017095,2]
[354284967,1740393091526,-500.0,0.00017095,2]
[354284968,1740393091535,-732.94,0.00017095,2]
[354284969,1740393091544,-894.91,0.00017095,2]
[354284970,1740393091553,-835.59,0.00017095,2]
[354284971,1740393091562,-1034.89,0.00017095,2]
[354284972,1740393091571,-500.0,0.00017095,2]
[354284973,1740393091583,-1083.32,0.00017095,2]
[354284974,1740393091592,-649.75,0.00017095,2]
[354284975,1740393091601,-547.93,0.00017095,2]
[354284976,1740393091611,-500.0,0.00017095,2]
[354284977,1740393091620,-689.58,0.00017095,2]
[354284978,1740393091630,-685.53,0.00017095,2]
[354284979,1740393091639,-500.0,0.00017095,2]
[354284980,1740393091649,-500.0,0.00017095,2]
[354284981,1740393091658,-500.0,0.00017095,2]
[354284982,1740393091668,-500.0,0.00017095,2]
[354284983,1740393091677,-500.0,0.00017095,2]
[354284984,1740393091687,-500.0,0.00017095,2]
[354284985,1740393091697,-770.75,0.00017095,2]
[354284986,1740393091706,-596.16,0.00017095,2]
[354284987,1740393091715,-1066.15,0.00017095,2]
[354284988,1740393091725,-939.56,0.00017095,2]
[354284989,1740393091735,-535.53,0.00017095,2]
[354284990,1740393091744,-1713.16,0.00017095,2]
[354284991,1740393091753,-999.11,0.00017095,2]
[354284992,1740393091763,-545.3,0.00017095,2]
[354284993,1740393091772,-988.44,0.00017095,2]
[354284994,1740393091782,-1914.59,0.00017095,2]
[354284995,1740393091791,-1771.19,0.00017095,2]
[354284996,1740393091802,-500.0,0.00017095,2]
[354284997,1740393091812,-4053.22,0.00017095,2]
[354284998,1740393091822,-857.92,0.00017095,2]
[354284999,1740393091833,-1114.15,0.00017095,2]
[354285000,1740393091844,-2047.21,0.00017095,2]
[354285001,1740393091858,-507.52,0.00017095,2]
[354285002,1740393091868,-760.3,0.00017095,2]
[354285003,1740393091877,-1134.98,0.00017095,2]
[354285004,1740393091887,-1537.05,0.00017095,2]
[354285005,1740393091896,-281.1713828,0.00017095,2]
[354285006,1740393091906,-2359.95,0.00017095,2]
[354285007,1740393091915,-1103.35,0.00017095,2]
[354285008,1740393091926,-4184.04,0.00017095,2]
[354285009,1740393091936,-1851.33,0.00017095,2]
[354285010,1740393091945,-2354.25,0.00017095,2]
[354285011,1740393091954,-613.1,0.00017095,2]
[354285012,1740393091963,-971.17,0.00017095,2]
[354285013,1740393091973,-3563.69,0.00017095,2]
[354285014,1740393091982,-500.0,0.00017095,2]
[354285015,1740393091991,-196.21961193,0.00017095,2]
[354285016,1740393092001,-2009.96,0.00017095,2]
[354285017,1740393092010,-500.0,0.00017095,2]
[354285018,1740393092020,-1543.4,0.00017095,2]
[354285019,1740393092029,-533.77,0.00017095,2]
[354285020,1740393092038,-633.74,0.00017095,2]
[354285021,1740393092047,-2242.87,0.00017095,2]
[354285022,1740393092056,-1803.65,0.00017095,2]
[354285023,1740393092065,-500.0,0.00017095,2]
[354285024,1740393092076,-500.0,0.00017095,2]
[354285025,1740393092085,-2187.68,0.00017095,2]
[354285026,1740393092095,-728.65,0.00017095,2]
[354285027,1740393092104,-6441.69,0.00017095,2]
[354285028,1740393092114,-530.59,0.00017095,2]
[354285029,1740393092123,-552.52,0.00017095,2]
[354285030,1740393092132,-1823.33,0.00017095,2]
[354285031,1740393092141,-500.0,0.00017095,2]
[354285032,1740393092150,-580.19,0.00017095,2]
[354285033,1740393092159,-2359.28,0.00017095,2]
[354285034,1740393092168,-500.0,0.00017095,2]
[354285035,1740393092177,-6310.46,0.00017095,2]
[354285036,1740393092187,-1754.56,0.00017095,2]
[354285037,1740393092196,-1453.83,0.00017095,2]
[354285038,1740393092205,-2395.13,0.00017095,2]
[354285039,1740393092214,-500.0,0.00017095,2]
[354285040,1740393092223,-500.0,0.00017095,2]
[354285041,1740393092232,-500.0,0.00017095,2]
[354285042,1740393092241,-1530.26,0.00017095,2]
[354285043,1740393092250,-1729.98,0.00017095,2]
[354285044,1740393092260,-523.34,0.00017095,2]
[354285045,1740393092269,-1888.7,0.00017095,2]
[354285046,1740393092278,-887.15,0.00017095,2]
[354285047,1740393092287,-561.68,0.00017095,2]
[354285048,1740393092297,-1893.25,0.00017095,2]
[354285049,1740393092306,-1229.83,0.00017095,2]
[354285050,1740393092315,-1592.71,0.00017095,2]
[354285051,1740393092326,-1352.31,0.00017095,2]
[354285052,1740393092335,-2122.57,0.00017095,2]
[354285053,1740393092345,-1563.39,0.00017095,2]
[354285054,1740393092355,-3181.44,0.00017095,2]
[354285055,1740393092364,-500.0,0.00017095,2]
[354285056,1740393092374,-931.35,0.00017095,2]
[354285057,1740393092384,-1399.69,0.00017095,2]
[354285058,1740393092393,-1364.19,0.00017095,2]
[354285059,1740393092402,-1158.15,0.00017095,2]
[354285060,1740393092411,-947.59,0.00017095,2]
[354285061,1740393092420,-1055.82,0.00017095,2]
[354285062,1740393092430,-1335.01,0.00017095,2]
[354285063,1740393092439,-1743.38,0.00017095,2]
[354285064,1740393092449,-1124.16,0.00017095,2]
[354285065,1740393092459,-1245.15,0.00017095,2]
[354285066,1740393092469,-862.87,0.00017095,2]
[354285067,1740393092478,-737.22,0.00017095,2]
[354285068,1740393092487,-3379.84,0.00017095,2]
[354285069,1740393092496,-2190.52,0.00017095,2]
[354285070,1740393092506,-1993.18,0.00017095,2]
[354285071,1740393092516,-2255.32,0.00017095,2]
[354285072,1740393092525,-2112.38,0.00017095,2]
[354285073,1740393092534,-1406.66,0.00017095,2]
[354285074,1740393092544,-511.28,0.00017095,2]
[354285075,1740393092553,-1338.87,0.00017095,2]
[354285076,1740393092563,-1163.78,0.00017095,2]
[354285077,1740393092572,-899.89,0.00017095,2]
[354285078,1740393092587,-2575.6,0.00017095,2]
[354285079,1740393092596,-1931.36,0.00017095,2]
[354285080,1740393092606,-651.74,0.00017095,2]
[354285081,1740393092615,-500.0,0.00017095,2]
[354285082,1740393092624,-3875.26,0.00017095,2]
[354285083,1740393092634,-714.88,0.00017095,2]
[354285084,1740393092644,-4627.1,0.00017095,2]
[354285085,1740393092654,-2331.1,0.00017095,2]
[354285086,1740393092664,-794.55,0.00017095,2]
[354285087,1740393092673,-811.87,0.00017095,2]
[354285088,1740393092683,-1360.35,0.00017095,2]
[354285089,1740393092694,-757.29,0.00017095,2]
[354285090,1740393092704,-500.0,0.00017095,2]
[354285091,1740393092714,-500.0,0.00017095,2]
[354285092,1740393092724,-500.0,0.00017095,2]
[354285093,1740393092733,-1905.52,0.00017095,2]
[354285094,1740393092743,-1832.68,0.00017095,2]
[354285095,1740393092753,-500.0,0.00017095,2]
[354285096,1740393092762,-1012.51,0.00017095,2]
[354285097,1740393092772,-500.0,0.00017095,2]
[354285098,1740393092782,-1130.11,0.00017095,2]
[354285099,1740393092793,-500.0,0.00017095,2]
[354285100,1740393092802,-2153.01,0.00017095,2]
[354285101,1740393092812,-500.0,0.00017095,2]
[354285102,1740393092821,-1435.16,0.00017095,2]
[354285103,1740393092834,-2176.8,0.00017095,2]
[354285104,1740393092844,-1895.66,0.00017095,2]
[354285105,1740393092856,-500.0,0.00017095,2]
[354285106,1740393092865,-683.14,0.00017095,2]
[354285107,1740393092875,-500.0,0.00017095,2]
[354285108,1740393092884,-500.0,0.00017095,2]
[354285109,1740393092895,-1239.34,0.00017095,2]
[354285110,1740393092904,-2117.99,0.00017095,2]
[354285111,1740393092914,-2225.26,0.00017095,2]
[354285112,1740393092923,-1435.64,0.00017095,2]
[354285113,1740393092934,-876.4,0.00017095,2]
[354285114,1740393092944,-1250.73,0.00017095,2]
[354285115,1740393092954,-1238.73,0.00017095,2]
[354285116,1740393092964,-1448.82,0.00017095,2]
[354285117,1740393092973,-1222.74,0.00017095,2]
[354285118,1740393092983,-500.0,0.00017095,2]
[354285119,1740393092992,-2133.06,0.00017095,2]
[354285120,1740393093002,-500.0,0.00017095,2]
[354285121,1740393093012,-902.39,0.00017095,2]
[354285122,1740393093023,-2952.34,0.00017095,2]
[354285123,1740393093033,-637.55,0.00017095,2]
[354285124,1740393093043,-1714.23,0.00017095,2]
[354285125,1740393093052,-1345.12,0.00017095,2]
[354285126,1740393093063,-1346.53,0.00017095,2]
[354285127,1740393093074,-260.09904852,0.00017095,2]
[354285128,1740393093086,-1153.09,0.00017095,2]
[354285129,1740393093097,-500.0,0.00017095,2]
[354285130,1740393093107,-1050.72,0.00017095,2]
[354285131,1740393093118,-1549.23,0.00017095,2]
[354285132,1740393093128,-500.0,0.00017095,2]
[354285133,1740393093139,-500.0,0.00017095,2]
[354285134,1740393093149,-2116.78,0.00017095,2]
[354285135,1740393093160,-1323.73,0.00017095,2]
[354285136,1740393093171,-1976.05,0.00017095,2]
[354285137,1740393093182,-968.02,0.00017095,2]
[354285138,1740393093193,-2709.27,0.00017095,2]
[354285139,1740393093204,-1417.13,0.00017095,2]
[354285140,1740393093215,-649.11,0.00017095,2]
[354285141,1740393093225,-379.25498755,0.00017095,2]
[354285142,1740393093234,-517.98,0.00017095,2]
[354285143,1740393093244,-1383.1,0.00017095,2]
[354285144,1740393093255,-575.9,0.00017095,2]
[354285145,1740393093265,-639.53,0.00017095,2]
[354285146,1740393093275,-2137.13,0.00017095,2]
[354285147,1740393093286,-1329.85,0.00017095,2]
[354285148,1740393093295,-2522.02,0.00017095,2]
[354285149,1740393093305,-500.0,0.00017095,2]
[354285150,1740393093314,-1057.9,0.00017095,2]
[354285151,1740393093327,-2173.78,0.00017095,2]
[354285152,1740393093337,-927.18,0.00017116,2]
[354285153,1740393093347,-4200.0,0.0001713,2]
[354285154,1740393093357,-2300.0,0.0001713,2]
[354285155,1740393093367,-5800.0,0.0001713,2]
[354285156,1740393093377,-500.0,0.00017178,2]
[354285157,1740393093386,-500.0,0.00017178,2]
[354285158,1740393093397,-600.9208169,0.00017178,2]
[354285159,1740393093407,-500.0,0.00017178,2]
[354285160,1740393093417,-500.0,0.00017178,2]
[354285161,1740393093427,-500.0,0.00017178,2]
[354285162,1740393093437,-500.0,0.00017178,2]
[354285163,1740393093447,-500.0,0.00017178,2]
[354285164,1740393093457,-513.04,0.00017178,2]
[354285165,1740393093467,-500.0,0.00017178,2]
[354285166,1740393093475,-357.68922765,0.00017178,2]
[354285167,1740393093484,-705.82,0.00017178,2]
[354285168,1740393093496,-500.0,0.00017178,2]
[354285169,1740393093505,-500.0,0.00017178,2]
[354285170,1740393093515,-568.69,0.00017178,2]
[354285171,1740393093525,-500.0,0.00017178,2]
[354285172,1740393093534,-500.0,0.00017178,2]
[354285173,1740393093544,-500.0,0.00017178,2]
[354285174,1740393093554,-425.96555534,0.00017178,2]
[354285175,1740393093563,-613.91,0.00017178,2]
[354285176,1740393093573,-597.28366719,0.00017178,2]
[354285177,1740393093584,-500.0,0.00017178,2]
[354285178,1740393093594,-500.0,0.00017178,2]
[354285179,1740393093604,-829.52,0.00017178,2]
[354285180,1740393093615,-614.79,0.00017178,2]
[354285181,1740393093625,-500.0,0.00017178,2]
[354285182,1740393093635,-579.34,0.00017178,2]
[354285183,1740393093644,-656.83,0.00017178,2]
[354285184,1740393093654,-801.72,0.00017178,2]
[354285185,1740393093664,-500.0,0.00017178,2]
[354285186,1740393093674,-500.0,0.00017178,2]
[354285187,1740393093683,-500.0,0.00017178,2]
[354285188,1740393093692,-778.26,0.00017178,2]
[354285189,1740393093702,-812.09,0.00017178,2]
[354285190,1740393093711,-563.47,0.00017178,2]
[354285191,1740393093721,-500.0,0.00017178,2]
[354285192,1740393093730,-500.0,0.00017178,2]
[354285193,1740393093739,-500.0,0.00017178,2]
[354285194,1740393093750,-594.42,0.00017178,2]
[354285195,1740393093760,-1017.59,0.00017178,2]
[354285196,1740393093770,-1173.0,0.00017178,2]
[354285197,1740393093780,-500.0,0.00017178,2]
[354285198,1740393093791,-985.36,0.00017178,2]
[354285199,1740393093801,-500.0,0.00017178,2]
[354285200,1740393093811,-714.1,0.00017178,2]
[354285201,1740393093822,-601.34,0.00017178,2]
[354285202,1740393093833,-500.0,0.00017178,2]
[354285203,1740393093843,-1166.36,0.00017178,2]
[354285204,1740393093854,-500.0,0.00017178,2]
[354285205,1740393093864,-500.0,0.00017178,2]
[354285206,1740393093873,-500.0,0.00017178,2]
[354285207,1740393093883,-655.58,0.00017178,2]
[354285208,1740393093893,-568.87,0.00017178,2]
[354285209,1740393093902,-500.0,0.00017178,2]
[354285210,1740393093912,-500.0,0.00017178,2]
[354285211,1740393093921,-500.0,0.00017178,2]
[354285212,1740393093933,-817.86,0.00017178,2]
[354285213,1740393094086,-500.0,0.00017178,2]
[354285214,1740393094095,-500.0,0.00017178,2]
[354285215,1740393094105,-554.61,0.00017178,2]
[354285216,1740393094116,-607.13,0.00017178,2]
[354285217,1740393094126,-500.0,0.00017178,2]
[354285218,1740393094140,-299.279106,0.00017178,2]
[354285219,1740393094149,-587.42,0.00017178,2]
[354285220,1740393094158,-500.0,0.00017178,2]
[354285221,1740393094168,-500.0,0.00017178,2]
[354285222,1740393094177,-500.0,0.00017178,2]
[354285223,1740393094186,-976.63,0.00017178,2]
[354285224,1740393094195,-758.07,0.00017178,2]
[354285225,1740393094205,-327.093108,0.00017178,2]
[354285226,1740393094216,-912.3,0.00017178,2]
[354285227,1740393094226,-966.44,0.00017178,2]
[354285228,1740393094236,-571.99,0.00017178,2]
[354285229,1740393094245,-583.89,0.00017178,2]
[354285230,1740393094255,-508.91,0.00017178,2]
[354285231,1740393094264,-500.0,0.00017178,2]
[354285232,1740393094274,-500.0,0.00017178,2]
[354285233,1740393094284,-500.0,0.00017178,2]
[354285234,1740393094294,-500.0,0.00017178,2]
[354285235,1740393094303,-825.69,0.00017178,2]
[354285236,1740393094314,-500.0,0.00017178,2]
[354285237,1740393094323,-793.11,0.00017178,2]
[354285238,1740393094334,-568.54,0.00017178,2]
[354285239,1740393094344,-688.09,0.00017178,2]
[354285240,1740393094353,-500.0,0.00017178,2]
[354285241,1740393094363,-827.28,0.00017178,2]
[354285242,1740393094373,-500.0,0.00017178,2]
[354285243,1740393094384,-500.0,0.00017178,2]
[354285244,1740393094394,-500.0,0.00017178,2]
[354285245,1740393094404,-500.0,0.00017178,2]
[354285246,1740393094414,-501.11,0.00017178,2]
[354285247,1740393094425,-571.55,0.00017178,2]
[354285248,1740393094437,-500.0,0.00017178,2]
[354285249,1740393094447,-590.2,0.00017178,2]
[354285250,1740393094457,-500.0,0.00017178,2]
[354285251,1740393094468,-500.0,0.00017178,2]
[354285252,1740393094478,-500.0,0.00017178,2]
[354285253,1740393094488,-500.0,0.00017178,2]
[354285254,1740393094497,-500.0,0.00017178,2]
[354285255,1740393094507,-500.0,0.00017178,2]
[354285256,1740393094516,-500.0,0.00017178,2]
[354285257,1740393094525,-470.68082433,0.00017178,2]
[354285258,1740393094534,-500.0,0.00017178,2]
[354285259,1740393094543,-865.78,0.00017178,2]
[354285260,1740393094553,-792.11,0.00017178,2]
[354285261,1740393094562,-502.07,0.00017178,2]
[354285262,1740393094572,-500.0,0.00017178,2]
[354285263,1740393094584,-732.07,0.00017178,2]
[354285264,1740393094594,-536.67,0.00017178,2]
[354285265,1740393094603,-772.46,0.00017178,2]
[354285266,1740393094613,-174.97019422,0.00017178,2]
[354285267,1740393094623,-994.92,0.00017178,2]
[354285268,1740393094633,-719.27,0.00017178,2]
[354285269,1740393094643,-500.0,0.00017178,2]
[354285270,1740393094653,-732.94,0.00017178,2]
[354285271,1740393094662,-894.91,0.00017178,2]
[354285272,1740393094672,-835.59,0.00017178,2]
[354285273,1740393094683,-1034.89,0.00017178,2]
[354285274,1740393094692,-500.0,0.00017178,2]
[354285275,1740393094702,-1083.32,0.00017178,2]
[354285276,1740393094712,-649.75,0.00017178,2]
[354285277,1740393094722,-547.93,0.00017178,2]
[354285278,1740393094732,-500.0,0.00017178,2]
[354285279,1740393094742,-689.58,0.00017178,2]
[354285280,1740393094752,-685.53,0.00017178,2]
[354285281,1740393094763,-500.0,0.00017178,2]
[354285282,1740393094773,-500.0,0.00017178,2]
[354285283,1740393094783,-469.4617324,0.00017178,2]
[354285284,1740393094793,-500.0,0.00017178,2]
[354285285,1740393094802,-500.0,0.00017178,2]
[354285286,1740393094812,-500.0,0.00017178,2]
[354285287,1740393094824,-770.75,0.00017178,2]
[354285288,1740393094835,-596.16,0.00017178,2]
[354285289,1740393094845,-1066.15,0.00017178,2]
[354285290,1740393094858,-939.56,0.00017178,2]
[354285291,1740393094868,-535.53,0.00017178,2]
[354285292,1740393094878,-1713.16,0.00017178,2]
[354285293,1740393094887,-999.11,0.00017178,2]
[354285294,1740393094898,-545.3,0.00017178,2]
[354285295,1740393094908,-988.44,0.00017178,2]
[354285296,1740393094918,-1914.59,0.00017178,2]
[354285297,1740393094928,-1771.19,0.00017178,2]
[354285298,1740393094938,-500.0,0.00017178,2]
[354285299,1740393094948,-4053.22,0.00017178,2]
[354285300,1740393094957,-857.92,0.00017178,2]
[354285301,1740393094968,-1114.15,0.00017178,2]
[354285302,1740393094978,-2047.21,0.00017178,2]
[354285303,1740393094987,-507.52,0.00017178,2]
[354285304,1740393094997,-760.3,0.00017178,2]
[354285305,1740393095007,-1134.98,0.00017178,2]
[354285306,1740393095017,-1537.05,0.00017178,2]
[354285307,1740393095027,-2359.95,0.00017178,2]
[354285308,1740393095038,-1103.35,0.00017178,2]
[354285309,1740393095048,-4184.04,0.00017178,2]
[354285310,1740393095058,-1851.33,0.00017178,2]
[354285311,1740393095067,-2354.25,0.00017178,2]
[354285312,1740393095077,-613.1,0.00017178,2]
[354285313,1740393095087,-971.17,0.00017178,2]
[354285314,1740393095097,-3563.69,0.00017178,2]
[354285315,1740393095106,-500.0,0.00017178,2]
[354285316,1740393095116,-2009.96,0.00017178,2]
[354285317,1740393095125,-500.0,0.00017178,2]
[354285318,1740393095135,-1543.4,0.00017178,2]
[354285319,1740393095144,-533.77,0.00017178,2]
[354285320,1740393095154,-633.74,0.00017178,2]
[354285321,1740393095164,-2242.87,0.00017178,2]
[354285322,1740393095173,-1803.65,0.00017178,2]
[354285323,1740393095183,-500.0,0.00017178,2]
[354285324,1740393095192,-500.0,0.00017178,2]
[354285325,1740393095201,-2187.68,0.00017178,2]
[354285326,1740393095211,-728.65,0.00017178,2]
[354285327,1740393095220,-6441.69,0.00017178,2]
[354285328,1740393095230,-530.59,0.00017178,2]
[354285329,1740393095240,-552.52,0.00017178,2]
[354285330,1740393095249,-1823.33,0.00017178,2]
[354285331,1740393095258,-500.0,0.00017178,2]
[354285332,1740393095267,-580.19,0.00017178,2]
[354285333,1740393095277,-2359.28,0.00017178,2]
[354285334,1740393095286,-500.0,0.00017178,2]
[354285335,1740393095295,-6310.46,0.00017178,2]
[354285336,1740393095304,-1754.56,0.00017178,2]
[354285337,1740393095314,-1453.83,0.00017178,2]
[354285338,1740393095324,-2395.13,0.00017178,2]
[354285339,1740393095335,-500.0,0.00017178,2]
[354285340,1740393095346,-500.0,0.00017178,2]
[354285341,1740393095356,-500.0,0.00017178,2]
[354285342,1740393095365,-1530.26,0.00017178,2]
[354285343,1740393095375,-1729.98,0.00017178,2]
[354285344,1740393095386,-523.34,0.00017178,2]
[354285345,1740393095395,-1888.7,0.00017178,2]
[354285346,1740393095404,-887.15,0.00017178,2]
[354285347,1740393095414,-561.68,0.00017178,2]
[354285348,1740393095423,-1893.25,0.00017178,2]
[354285349,1740393095433,-1229.83,0.00017178,2]
[354285350,1740393095442,-1592.71,0.00017178,2]
[354285351,1740393095452,-1352.31,0.00017178,2]
[354285352,1740393095461,-2122.57,0.00017178,2]
[354285353,1740393095470,-1563.39,0.00017178,2]
[354285354,1740393095479,-500.0,0.00017178,2]
[354285355,1740393095488,-3181.44,0.00017178,2]
[354285356,1740393095497,-931.35,0.00017178,2]
[354285357,1740393095507,-1399.69,0.00017178,2]
[354285358,1740393095516,-1364.19,0.00017178,2]
[354285359,1740393095525,-1158.15,0.00017178,2]
[354285360,1740393095535,-947.59,0.00017178,2]
[354285361,1740393095544,-1055.82,0.00017178,2]
[354285362,1740393095553,-1335.01,0.00017178,2]
[354285363,1740393095568,-1743.38,0.00017178,2]
[354285364,1740393095581,-1124.16,0.00017178,2]
[354285365,1740393095591,-1245.15,0.00017178,2]
[354285366,1740393095600,-862.87,0.00017178,2]
[354285367,1740393095611,-737.22,0.00017178,2]
[354285368,1740393095621,-3379.84,0.00017178,2]
[354285369,1740393095630,-2190.52,0.00017178,2]
[354285370,1740393095640,-1993.18,0.00017178,2]
[354285371,1740393095649,-2255.32,0.00017178,2]
[354285372,1740393095659,-2112.38,0.00017178,2]
[354285373,1740393095668,-1406.66,0.00017178,2]
[354285374,1740393095677,-511.28,0.00017178,2]
[354285375,1740393095687,-1338.87,0.00017178,2]
[354285376,1740393095696,-1163.78,0.00017178,2]
[354285377,1740393095706,-899.89,0.00017178,2]
[354285378,1740393095717,-2575.6,0.00017178,2]
[354285379,1740393095731,-1931.36,0.00017178,2]
[354285380,1740393095742,-500.0,0.00017178,2]
[354285381,1740393095751,-3875.26,0.00017178,2]
[354285382,1740393095761,-714.88,0.00017178,2]
[354285383,1740393095771,-4627.1,0.00017178,2]
[354285384,1740393095780,-651.74,0.00017178,2]
[354285385,1740393095789,-2331.1,0.00017178,2]
[354285386,1740393095798,-794.55,0.00017178,2]
[354285387,1740393095807,-811.87,0.00017178,2]
[354285388,1740393095816,-1360.35,0.00017178,2]
[354285389,1740393095826,-757.29,0.00017178,2]
[354285390,1740393095836,-500.0,0.00017178,2]
[354285391,1740393095847,-301.52783914,0.00017178,2]
[354285392,1740393095859,-1905.52,0.00017178,2]
[354285393,1740393095870,-1832.68,0.00017178,2]
[354285394,1740393095880,-500.0,0.00017178,2]
[354285395,1740393095891,-1012.51,0.00017178,2]
[354285396,1740393095900,-500.0,0.00017178,2]
[354285397,1740393095910,-1130.11,0.00017178,2]
[354285398,1740393095919,-500.0,0.00017178,2]
[354285399,1740393095931,-2153.01,0.00017178,2]
[354285400,1740393095940,-500.0,0.00017178,2]
[354285401,1740393095950,-1435.16,0.00017178,2]
[354285402,1740393095959,-2176.8,0.00017178,2]
[354285403,1740393095968,-500.0,0.00017178,2]
[354285404,1740393095978,-1895.66,0.00017178,2]
[354285405,1740393095987,-683.14,0.00017178,2]
[354285406,1740393095996,-500.0,0.00017178,2]
[354285407,1740393096005,-500.0,0.00017178,2]